fUSD/lending_fUSD_20240611
["ID","MTS","AMOUNT","RATE_DAILY","PERIOD"]
[329082087,1718083867297,-500.53,0.00029863,4]
[329082088,1718083867308,-500.0,0.00029863,4]
[329082089,1718083867319,-666.15,0.00029863,4]
[329082090,1718083867329,-500.0,0.00029863,4]
[329082091,1718083867339,-500.0,0.00029863,4]
[329082092,1718083867350,-500.0,0.00029863,4]
[329082093,1718083867360,-500.53,0.00029863,4]
[329082094,1718083867370,-666.15,0.00029863,4]
[329082095,1718083867381,-500.0,0.00029863,4]
[329082096,1718083867392,-500.53,0.00029863,4]
[329082097,1718083867410,-500.0,0.00029863,4]
[329082098,1718083867420,-500.0,0.00029863,4]
[329082099,1718083867431,-666.15,0.00029863,4]
[329082100,1718083867442,-500.0,0.00029863,4]
[329082101,1718083867452,-500.53,0.00029863,4]
[329082102,1718083867463,-234.03759695,0.00029863,4]
[329082103,1718083867790,-265.96240305,0.00029863,4]
[329082104,1718083867800,-500.0,0.00029863,4]
[329082105,1718083867812,-666.15,0.00029863,4]
[329082106,1718083867823,-500.0,0.00029863,4]
[329082107,1718083867834,-14.09527415,0.00029863,4]
[329082108,1718083867858,-308.25,0.00029863,4]
[329082113,1718084142286,179.59020315,0.00013998,7]
[329082114,1718084149495,575.38140871,0.00010489,7]
[329082115,1718084165835,580.10629379,0.00013998,7]
[329082180,1718084815495,-10540.40471413,9.492e-05,2]
[329082181,1718084815522,-1625.52061624,9.493e-05,2]
[329082182,1718084815555,-7544.96004909,9.493e-05,2]
[329082183,1718084815581,-2138.57685314,9.494e-05,2]
[329082184,1718084815606,-3122.985941,9.495e-05,2]
[329082185,1718084815632,-8422.79981826,9.542e-05,2]
[329082186,1718084815657,-1796.28532413,9.542e-05,2]
[329082187,1718084815681,-449.01915721,9.542e-05,2]
[329082188,1718084815715,-4292.57166119,9.543e-05,2]
[329082189,1718084815743,-9222.56534114,9.543e-05,2]
[329082190,1718084815770,-1796.28532413,9.544e-05,2]
[329082191,1718084815798,-8135.87148376,9.548e-05,2]
[329082192,1718084815823,-1078.99851342,9.549e-05,2]
[329082193,1718084815851,-150.0,9.589e-05,2]
[329082194,1718084815884,-239.44473157,9.983e-05,2]
[329082195,1718084815911,-9999.99,9.983e-05,2]
[329082196,1718084815939,-528.95,0.00010058,2]
[329082197,1718084815963,-10016.62,0.00010488,2]
[329082198,1718084815989,-419.27,0.00010488,2]
[329082199,1718084816016,-499.99,0.00010488,2]
[329082200,1718084816043,-2543.38,0.00010488,2]
[329082201,1718084816070,-999.99,0.0001049,2]
[329082202,1718084816095,-3867.79,0.0001049,2]
[329082203,1718084816122,-150.99,0.0001049,2]
[329082204,1718084816147,-499.99,0.0001049,2]
[329082205,1718084816174,-7323.15413047,0.0001049,2]
[329082206,1718084816202,-2553.83967559,0.00010499,2]
[329082207,1718084816230,-250.0,0.00010939,2]
[329082208,1718084816257,-23900.0,0.00011371,2]
[329082209,1718084816283,-208.08,0.00011614,2]
[329082210,1718084816316,-500.0,0.00011656,3]
[329082211,1718084816345,-1526.98382409,0.00011798,2]
[329082212,1718084816373,-101912.69284144,0.00011799,2]
[329082215,1718084827174,-1053.27219709,9.492e-05,2]
[329082216,1718084827200,-26805.19814895,0.00011799,2]
[329082232,1718084958178,-163.27789295,0.00011699,2]
[329082233,1718084958207,-163.27789292,0.00011699,2]
[329082234,1718084958236,-163.27789292,0.000117,2]
[329082235,1718084958263,-163.27789292,0.000117,2]
[329082236,1718084958291,-300.0,0.00011798,2]
[329082237,1718084958318,-2923.33342829,0.00011799,2]
[329082239,1718084966102,-3026.33323244,0.00011799,2]
[329082241,1718084973125,-3892.7838,0.00011799,2]
[329082249,1718085031409,-300.0,0.00011798,2]
[329082250,1718085031523,-86952.04106154,0.00011799,2]
[329082254,1718085033134,-22045.12870756,0.00011799,2]
[329082255,1718085033147,-1578.71906845,0.00011799,2]
[329082256,1718085033165,-3054.54400321,0.00011799,2]
[329082258,1718085033178,-2260.54550443,0.00011799,2]
[329082262,1718085033481,-28493.15928571,0.00011799,2]
[329082263,1718085033492,-37528.9948756,0.00011799,2]
[329082264,1718085033507,-517.9614323,0.00011799,2]
[329082265,1718085033520,-803.1102161,0.00011799,2]
[329082266,1718085033534,-364.64742595,0.00011799,2]
[329082267,1718085033548,-2105.14940055,0.00011799,2]
[329082268,1718085033562,-1061.79022726,0.00011799,2]
[329082269,1718085033575,-808.14997755,0.00011799,2]
[329082270,1718085033589,-3323.76949386,0.00011799,2]
[329082271,1718085033602,-4462.52367967,0.00011799,2]
[329082272,1718085033809,-150523.2657714,0.00011799,2]
[329082273,1718085033822,-279.77825015,0.00011799,2]
[329082274,1718085033832,-10142.18907445,0.000118,2]
[329082275,1718085033845,-703.83,0.00011976,2]
[329082276,1718085033858,-1625.52061624,0.00012321,2]
[329082277,1718085033869,-528.95,0.00012322,2]
[329082278,1718085033880,-155.1485282,0.00012598,2]
[329082279,1718085033890,-420.0,0.00012954,2]
[329082280,1718085033901,-40639.77324208,0.0001298,2]
[329082281,1718085033912,-625.29760276,0.00013438,2]
[329082282,1718085033924,-462.51,0.00013438,2]
[329082283,1718085033936,-38408.02,0.00013441,2]
[329082284,1718085033946,-1661.18,0.00013441,2]
[329082285,1718085033958,-250.0,0.00013542,2]
[329082286,1718085033969,-327.67985672,0.00013599,2]
[329082287,1718085033981,-499.99,0.00013699,2]
[329082288,1718085033991,-500.0,0.00013699,2]
[329082289,1718085034002,-264.42,0.00013699,2]
[329082290,1718085034012,-752.83867739,0.000139,2]
[329082291,1718085034022,-2428.55358528,0.00013936,2]
[329082292,1718085034033,-206.93421223,0.00013936,2]
[329082293,1718085034044,-274.51725021,0.00013936,2]
[329082294,1718085034055,-5678.63655622,0.00013936,2]
[329082295,1718085034067,-153.63,0.0001399,2]
[329082296,1718085034081,-153.63,0.0001399,2]
[329082297,1718085034093,-153.63,0.0001399,2]
[329082298,1718085034105,-245.79740235,0.0001399,2]
[329082299,1718085034116,-799.49995464,0.00013998,2]
[329082301,1718085034130,-296.81340302,0.00013998,2]
[329082303,1718085034141,-645.83379313,0.00013998,2]
[329082305,1718085034154,-1276.84923352,0.00013998,2]
[329082307,1718085034165,-310.91940956,0.00013998,2]
[329082309,1718085034177,-155.19159435,0.00013998,2]
[329082311,1718085034190,-864.61064937,0.00013998,2]
[329082313,1718085034201,-155.15260185,0.00013998,2]
[329082315,1718085034212,-466.44818084,0.00013998,2]
[329082317,1718085034228,-201.70944499,0.00013998,2]
[329082319,1718085034240,-824.91329536,0.00013998,2]
[329082321,1718085034254,-537.8115283,0.00013998,2]
[329082323,1718085034264,-206.5618553,0.00013998,2]
[329082325,1718085034276,-1131.19593616,0.00013998,2]
[329082327,1718085034287,-157.16429918,0.00013998,2]
[329082329,1718085034298,-384.88061545,0.00013998,2]
[329082331,1718085034308,-7215.84910395,0.00013998,2]
[329082333,1718085034319,-235.01777921,0.00013998,2]
[329082335,1718085034329,-525.24750184,0.00013998,2]
[329082337,1718085034340,-155.32460017,0.00013998,2]
[329082339,1718085034350,-156.69620433,0.00013998,2]
[329082341,1718085034361,-218.81165887,0.00013998,2]
[329082343,1718085034371,-1000.0,0.00013998,2]
[329082345,1718085034382,-1252.78326197,0.00013998,2]
[329082347,1718085034394,-19162.9563727,0.00013998,2]
[329082349,1718085034405,-546.8122269,0.00013998,2]
[329082351,1718085034415,-330.71097635,0.00013998,2]
[329082353,1718085034426,-2237.76203275,0.00013998,2]
[329082354,1718085034436,-155.70224333,0.00013998,2]
[329082355,1718085034447,-8019.23926689,0.00013998,2]
[329082356,1718085034458,-350.63202928,0.00013998,2]
[329082357,1718085034469,-877.81787049,0.00013998,2]
[329082358,1718085034482,-868.07952016,0.00013998,2]
[329082359,1718085034493,-252.61928818,0.00013998,2]
[329082360,1718085034504,-3410.98497255,0.00013998,2]
[329082361,1718085034515,-3749.44289962,0.00013998,2]
[329082362,1718085034525,-182.56247558,0.00013998,2]
[329082363,1718085034536,-467.05178852,0.00013998,2]
[329082365,1718085034546,-1052.94609197,0.00013998,2]
[329082366,1718085034556,-209.52678916,0.00013998,2]
[329082368,1718085034567,-1067.75598538,0.00013998,2]
[329082370,1718085034578,-19542.05736259,0.00013999,2]
[329082372,1718085034589,-294972.13216471,0.00014,2]
[329082389,1718085035009,-956.33828,0.00014,2]
[329082390,1718085035021,-919.32000046,0.00014,2]
[329082391,1718085035034,-630.85,0.00014,2]
[329082392,1718085035062,-0.14896397,0.00014,2]
[329082393,1718085035074,-6114.82505261,0.00014,2]
[329082394,1718085035088,-1768.47672408,0.00014,2]
[329082395,1718085035111,-935.93930894,0.00014,2]
[329082396,1718085035130,-404.0000001,0.00014,2]
[329082397,1718085035148,-326.34,0.00014,2]
[329082398,1718085035162,-420.0,0.00014,2]
[329082399,1718085035211,-9109.98551208,0.00014,2]
[329082400,1718085035227,-325.09234905,0.00014,2]
[329082401,1718085035241,-667.60343207,0.00014,2]
[329082403,1718085038845,-1499865.0,0.00014,2]
[329082404,1718085039276,-5080.1458687,0.00014,2]
[329082405,1718085039288,-997.38141989,0.00014,2]
[329082406,1718085039301,-1200.27262476,0.00014,2]
[329082407,1718085039313,-6037.91160832,0.00014,2]
[329082408,1718085039688,-1e-08,0.00014,2]
[329082409,1718085039701,-3638.52016364,0.00014,2]
[329082410,1718085039714,-33993.63395676,0.00014,2]
[329082411,1718085039728,-390.28582482,0.00014,2]
[329082412,1718085041605,512.14,8.849e-05,2]
[329082413,1718085041634,2041.69967559,8.849e-05,2]
[329082424,1718085043492,-1356.0,0.00014,2]
[329082427,1718085043890,-1133.69958104,0.00014,2]
[329082430,1718085044198,-4750.89883,0.00014,2]
[329082432,1718085045466,-1889.08592415,0.00014,2]
[329082433,1718085045481,-1704.97924328,0.00014,2]
[329082442,1718085046039,-0.32040358,0.00014,2]
[329082444,1718085046438,-0.07343969,0.00014,2]
[329082449,1718085047835,-10025.63873703,0.00014,2]
[329082450,1718085047865,-356.43586957,0.00014,2]
[329082451,1718085048176,-679.96472798,0.00014,2]
[329082452,1718085048227,-3034.2807672,0.00014,2]
[329082455,1718085057556,916.57408266,8.849e-05,2]
[329082458,1718085074376,166.63656156,0.00028,90]
[329082471,1718085388927,386.175254,0.00013724,2]
[329082472,1718085393396,546.32694,0.00013724,2]
[329082473,1718085411119,-1000.0,0.00013889,2]
[329082474,1718085411149,-184.75301057,0.0001389,2]
[329082475,1718085434344,-589.9213,0.000139,2]
[329082476,1718085445397,257.9705,0.000139,2]
[329082477,1718085482155,126.85299543,0.000139,2]
[329082479,1718086061708,500.0,0.00028,120]
[329082480,1718086097142,-2537.09084144,0.00010425,2]
[329082481,1718086097183,-1000.0,0.00013798,2]
[329082482,1718086097221,-156.22053057,0.00013799,2]
[329082483,1718086097250,-419.23220875,0.00013812,2]
[329082484,1718086097291,-150.0,0.00013899,2]
[329082485,1718086097320,-300.0,0.00013899,2]
[329082486,1718086097369,-270.20570457,0.000139,2]
[329082487,1718086097411,-827.25071467,0.000139,2]
[329082488,1718086101088,171.21189757,5e-05,2]
[329082491,1718086146304,500.0,0.00028,120]
[329082492,1718086161257,-455.27245,0.0001386,2]
[329082493,1718086161299,-6803.51371401,0.000139,2]
[329082494,1718086161345,-18087.61927122,0.000139,2]
[329082495,1718086162128,-1469.01366295,0.000139,2]
[329082496,1718086167990,-3622.90896583,0.000139,2]
[329082497,1718086168012,-1671.64024189,0.000139,2]
[329082498,1718086168773,-4847.40221975,0.000139,2]
[329082499,1718086168883,-3026.33323244,0.000139,2]
[329082500,1718086170114,-6519.45246638,0.000139,2]
[329082503,1718086234693,-4849.21969045,0.000139,2]
[329082507,1718086234726,-1072.87948852,0.000139,2]
[329082510,1718086234741,-9696.37754878,0.000139,2]
[329082512,1718086234754,-363.6,0.000139,2]
[329082515,1718086234771,-12328.25531229,0.000139,2]
[329082517,1718086234786,-250.33780553,0.000139,2]
[329082519,1718086234799,-2870.55659397,0.000139,2]
[329082521,1718086234812,-2119.082,0.000139,2]
[329082523,1718086234835,-22049.3639,0.000139,2]
[329082524,1718086234846,-4616.24077475,0.00013989,2]
[329082525,1718086234868,-690.48,0.0001399,3]
[329082526,1718086234880,-4917.11681804,0.00014,2]
[329082527,1718086234893,-341.68853004,0.00014,2]
[329082528,1718086234994,-0.91572371,0.00014,2]
[329082529,1718086235012,-432.92,0.00014,2]
[329082530,1718086235025,-471.81328928,0.00014,2]
[329082531,1718086235039,-3971.07024,0.00014,2]
[329082532,1718086235053,-4321.14263448,0.00014,2]
[329082533,1718086235066,-760.55939495,0.00014,2]
[329082534,1718086235078,-570.09,0.00014,2]
[329082535,1718086235092,-12838.4993857,0.00014,2]
[329082539,1718086243151,-7558.44092623,0.00014,2]
[329082542,1718086243165,-870.60999909,0.00014,2]
[329082545,1718086243905,-443.43736833,0.00014,2]
[329082546,1718086243920,-1074.05886497,0.00014,2]
[329082547,1718086243934,-1568.29552831,0.00014,2]
[329082548,1718086243948,-989.51161799,0.00014,2]
[329082549,1718086245037,-573.2828905,0.00014,2]
[329082551,1718086245049,-1040.16476904,0.00014,2]
[329082552,1718086245063,-546.23509259,0.00014,2]
[329082554,1718086245077,-1767.94298601,0.00014,2]
[329082555,1718086245092,-3049.11535628,0.00014,2]
[329082556,1718086245104,-6125.32246655,0.00014,2]
[329082557,1718086245151,-107166.28082611,0.00014,2]
[329082558,1718086245164,-2068.59902885,0.00014,2]
[329082559,1718086245176,-1025.93346629,0.00014,2]
[329082560,1718086245193,-2084.0327375,0.00014,2]
[329082561,1718086245205,-2007.98320904,0.00014,2]
[329082562,1718086245223,-1744.96216962,0.00014,2]
[329082563,1718086245237,-677.92725,0.00014,2]
[329082564,1718086245251,-4019.57753353,0.00014,2]
[329082565,1718086245266,-10386.09884792,0.00014,2]
[329082566,1718086245277,-9881.99222486,0.00014,2]
[329082567,1718086245290,-7768.1384,0.00014,2]
[329082568,1718086245302,-7146.2938,0.00014,2]
[329082569,1718086245314,-18261.65070178,0.00014,2]
[329082570,1718086245327,-88584.54265779,0.00014,2]
[329082571,1718086245339,-603.45575644,0.00014,2]
[329082572,1718086245352,-910.60655848,0.00014,2]
[329082573,1718086245364,-7944.81792,0.00014,2]
[329082574,1718086245376,-712.08271485,0.00014,2]
[329082575,1718086245388,-358.33485164,0.00014,2]
[329082576,1718086245401,-399.70833916,0.00014,2]
[329082577,1718086245502,-0.51005716,0.00014,2]
[329082578,1718086245515,-822.49017547,0.00014,2]
[329082579,1718086245527,-661.66608519,0.00014,2]
[329082580,1718086245540,-19527.30545311,0.00014,2]
[329082581,1718086246074,-1062.99965272,0.00014,2]
[329082584,1718086246086,-693.78630288,0.00014,2]
[329082597,1718086246166,-0.06738161,0.00014,2]
[329082599,1718086246178,-672.57,0.00014,2]
[329082601,1718086246195,-14181.69517129,0.00014,2]
[329082603,1718086246208,-319.999995,0.00014,2]
[329082606,1718086246233,-505.53116172,0.00014,2]
[329082623,1718086247085,-394.56017941,0.00014,2]
[329082626,1718086247098,-1163.68068873,0.00014,2]
[329082628,1718086247110,-1955.24704471,0.00014,2]
[329082630,1718086247122,-5987.81460015,0.00014,2]
[329082637,1718086248057,-3069.12259211,0.00014,2]
[329082638,1718086248072,-590.82,0.00014,2]
[329082639,1718086248084,-6818.12452324,0.00014,2]
[329082643,1718087346287,-316.92510636,9.974e-05,2]
[329082644,1718087346312,-345.77981054,9.975e-05,2]
[329082645,1718087346337,-2195.01899183,9.975e-05,2]
[329082646,1718087346361,-365.49406058,9.976e-05,2]
[329082647,1718087346386,-1000.0,9.976e-05,2]
[329082648,1718087346410,-404.57077473,9.976e-05,2]
[329082649,1718087346435,-153.04578458,9.978e-05,2]
[329082650,1718087346461,-1383.0,0.0001008,2]
[329082651,1718087346487,-150.0,0.00010082,2]
[329082652,1718087346512,-150.0,0.00010082,2]
[329082653,1718087346540,-150.0,0.00010082,2]
[329082654,1718087346569,-172.12012373,0.00010206,2]
[329082655,1718087346599,-730.92,0.00010271,2]
[329082656,1718087346629,-10151.29,0.00010323,2]
[329082657,1718087346652,-1385.35,0.00010325,2]
[329082658,1718087346676,-1981.26334765,0.00010325,2]
[329082659,1718087348162,-2852.29665235,0.00010325,2]
[329082660,1718087348187,-1404.68,0.00010325,2]
[329082661,1718087348213,-499.99,0.00010325,2]
[329082662,1718087348250,-1652.88241952,0.000105,2]
[329082663,1718087348278,-321.67179536,0.000105,2]
[329082664,1718087349297,-678.31820464,0.000105,2]
[329082665,1718087349337,-884.02,0.00011089,2]
[329082666,1718087349368,-210.0,0.0001109,2]
[329082667,1718087349403,-210.0,0.0001109,2]
[329082668,1718087349431,-210.0,0.0001109,2]
[329082669,1718087349489,-86.57783313,0.00011221,2]
[329082670,1718087352815,-64.41216687,0.00011221,2]
[329082671,1718087352840,-299.99,0.0001134,2]
[329082672,1718087352863,-150.99,0.00011354,2]
[329082673,1718087352888,-150.99,0.00011354,2]
[329082674,1718087352913,-1837.49,0.00011383,2]
[329082675,1718087352937,-295.69,0.00011512,2]
[329082676,1718087352963,-250.0,0.00011551,2]
[329082677,1718087352992,-1000.0,0.00011563,2]
[329082678,1718087353016,-8659.08,0.0001157,2]
[329082679,1718087353040,-533.27,0.00011584,2]
[329082680,1718087353065,-282.84,0.00011765,2]
[329082681,1718087353090,-18186.85692755,0.00011817,2]
[329082682,1718087361222,-4089.22004284,0.00011817,2]
[329082683,1718087365766,-358.91103888,0.00011816,2]
[329082684,1718087365793,-405.9296402,0.00011816,2]
[329082685,1718087365820,-157.02799353,0.00011816,2]
[329082686,1718087365852,-1623.92302961,0.00011817,2]
[329082687,1718087365879,-500.0,0.00011906,2]
[329082689,1718087369902,-2684.5,0.00012014,2]
[329082690,1718087369930,-207.47,0.00012112,2]
[329082691,1718087369955,-250.0,0.00012486,2]
[329082692,1718087369980,-4042.41,0.00012487,2]
[329082693,1718087370009,-2747.1,0.0001249,2]
[329082694,1718087370032,-224.99,0.0001249,2]
[329082695,1718087370058,-178.91,0.0001249,2]
[329082696,1718087370095,-730.92,0.00012535,2]
[329082697,1718087370125,-211.6109,0.00012585,2]
[329082698,1718087370150,-1000.0,0.00012683,2]
[329082699,1718087370177,-347.59764546,0.00012683,2]
[329082700,1718087370204,-2200.61651123,0.00012684,2]
[329082701,1718087370230,-18181.2297255,0.00012901,2]
[329082712,1718087433344,-625.3983,0.00012901,2]
[329082714,1718087433357,-7809.8219745,0.00012901,2]
[329082716,1718087433368,-31336.02811811,0.00012901,2]
[329082720,1718087433971,-78.83701619,0.00012901,2]
[329082721,1718087433984,-1000.0,0.00013009,2]
[329082722,1718087433996,-206.31,0.00013699,2]
[329082723,1718087434007,-1682.38,0.00013699,2]
[329082724,1718087434018,-393.5319002,0.000137,2]
[329082725,1718087434029,-2635.83840015,0.0001372,2]
[329082726,1718087434047,-1000.0,0.00013789,2]
[329082727,1718087434069,-100000.0,0.0001379,2]
[329082728,1718087434080,-191188.56664931,0.0001379,2]
[329082729,1718087434104,-2611.87602153,0.0001379,2]
[329082730,1718087434139,-614.7279758,0.0001379,2]
[329082731,1718087434154,-428.101543,0.0001379,2]
[329082732,1718087434166,-8437.01877512,0.0001379,2]
[329082736,1718087434688,-200.0,0.00013699,2]
[329082738,1718087434700,-41719.70903524,0.0001379,2]
[329082740,1718087434710,-2500.0,0.000138,2]
[329082742,1718087434722,-200.0,0.0001388,2]
[329082744,1718087434732,-44706.7269694,0.0001389,2]
[329082746,1718087434745,-626.71201654,0.0001389,2]
[329082748,1718087434759,-346.48303694,0.0001389,2]
[329082750,1718087434773,-9417.86239022,0.0001389,2]
[329082752,1718087434785,-1426.0945953,0.000139,2]
[329082754,1718087434795,-752.83867739,0.000139,2]
[329082756,1718087434808,-500.0,0.000139,2]
[329082758,1718087434819,-500.0,0.000139,2]
[329082760,1718087434830,-960.0,0.000139,2]
[329082762,1718087434842,-267.0597,0.000139,2]
[329082765,1718087434862,-8335.3384,0.000139,2]
[329082767,1718087434874,-172.12012372,0.000139,2]
[329082769,1718087434885,-572.9921,0.000139,2]
[329082771,1718087434896,-155.13498795,0.00013998,2]
[329082773,1718087434907,-307.45960582,0.00013998,2]
[329082775,1718087434918,-155.15686199,0.00013998,2]
[329082777,1718087434929,-1059.81697528,0.00013999,2]
[329082779,1718087434939,-79951.00502922,0.00014,2]
[329082781,1718087434954,-35697.86639445,0.00014,2]
[329082783,1718087434966,-1062.45142934,0.00014,2]
[329082789,1718087439322,-34110.19572335,0.0001369,2]
[329082790,1718087439335,-349.38969438,0.0001369,2]
[329082791,1718087439961,-836.85039836,0.0001369,2]
[329082792,1718087439981,-676.43576,0.0001369,2]
[329082793,1718087440007,-260.42269283,0.0001369,2]
[329082794,1718087440033,-6628.30439943,0.0001369,2]
[329082795,1718087440058,-411.82170065,0.0001369,2]
[329082796,1718087440089,-3356.431831,0.0001369,2]
[329082797,1718087440111,-542.82369377,0.00013889,2]
[329082798,1718087440134,-64494.00497254,0.00014,2]
[329082799,1718087440157,-6745.89005784,0.00014,2]
[329082800,1718087440176,-425.82956,0.00014,2]
[329082801,1718087440186,-15439.02451614,0.00014,2]
[329082802,1718087440196,-200.0,0.00014,2]
[329082803,1718087440207,-926.19,0.00014183,2]
[329082804,1718087440217,-165.66,0.00014243,2]
[329082805,1718087440227,-165.66,0.00014255,2]
[329082806,1718087440237,-165.66,0.00014267,2]
[329082807,1718087440247,-165.66,0.00014279,2]
[329082808,1718087440257,-165.66,0.00014291,2]
[329082809,1718087440268,-165.66,0.00014303,2]
[329082810,1718087440278,-165.66,0.00014315,2]
[329082811,1718087440289,-1000.0,0.00014454,2]
[329082812,1718087440299,-2176.68098064,0.00014754,2]
[329082813,1718087442411,-507.81901936,0.00014754,2]
[329082814,1718087442422,-128.55084671,0.00014799,2]
[329082815,1718087444185,-602.36915329,0.00014799,2]
[329082816,1718087444197,-155.41062946,0.00015,2]
[329082817,1718087444208,-165.39,0.00015636,2]
[329082818,1718087444219,-167.96,0.00015831,2]
[329082819,1718087444231,-1000.0,0.00015899,2]
[329082820,1718087444242,-393.53190018,0.00015995,2]
[329082821,1718087444253,-730.92,0.00017063,2]
[329082822,1718087444264,-1000.0,0.00017345,2]
[329082823,1718087444275,-2684.5,0.00017494,2]
[329082824,1718087444286,-393.53190018,0.00018289,2]
[329082825,1718087444296,-167.96,0.00018444,2]
[329082826,1718087444307,-425.82956,0.00019,2]
[329082827,1718087444321,-500.0,0.00019178,2]
[329082828,1718087444333,-501.67170417,0.00019178,2]
[329082829,1718087444344,-418.79539966,0.00019178,2]
[329082830,1718087444354,-500.0,0.00019178,2]
[329082831,1718087444365,-430.64379796,0.00019178,2]
[329082832,1718087444377,-158.96042199,0.00019178,2]
[329082833,1718087444387,-350.0,0.00019178,2]
[329082834,1718087444399,-150.1943612,0.00019178,2]
[329082835,1718087444410,-168.59784676,0.00019178,2]
[329082836,1718087444421,-403.70801457,0.00019178,2]
[329082837,1718087444432,-500.0,0.00019178,2]
[329082838,1718087444443,-637.02719914,0.00019178,2]
[329082839,1718087444455,-355.14811038,0.00019178,2]
[329082840,1718087444468,-425.90893477,0.00019178,2]
[329082841,1718087444479,-500.0,0.00019178,2]
[329082842,1718087444490,-500.0,0.00019178,2]
[329082843,1718087444502,-500.0,0.00019178,2]
[329082844,1718087444512,-500.0,0.00019178,2]
[329082845,1718087444524,-340.34321377,0.00019178,2]
[329082846,1718087444535,-560.92729843,0.00019178,2]
[329082847,1718087444546,-1682.38,0.00019178,2]
[329082848,1718087444558,-730.92,0.00019327,2]
[329082849,1718087444571,-3893.22745947,0.0002,2]
[329082850,1718087444582,-283.8864487,0.0002,4]
[329082851,1718087444592,-235.44605513,0.0002,2]
[329082852,1718087444603,-1761.06242246,0.0002,2]
[329082853,1718087444622,-7146.62257177,0.0002,2]
[329082854,1718087444634,-510.21195869,0.0002,2]
[329082855,1718087444651,-683.81594478,0.0002,2]
[329082856,1718087444663,-226.7178388,0.000201,2]
[329082857,1718087444674,-171.14,0.00020548,2]
[329082858,1718087444684,-393.53190018,0.00020584,2]
[329082859,1718087444694,-11734.0,0.000212,5]
[329082860,1718087444706,-730.92,0.00021591,2]
[329082861,1718087444717,-507.40709392,0.000219,2]
[329082862,1718087444728,-382.28,0.00021918,2]
[329082863,1718087444738,-165.13,0.00021918,2]
[329082864,1718087444750,-250.0,0.00021918,2]
[329082865,1718087444761,-549.60669251,0.000224,2]
[329082866,1718087444772,-393.53190018,0.00022879,2]
[329082868,1718087444782,-167.21,0.00022948,2]
[329082870,1718087444793,-765.0,0.000232,3]
[329082872,1718087444803,-2458.0,0.000232,3]
[329082874,1718087444814,-211.0,0.0002349,2]
[329082876,1718087444825,-341.86084048,0.00023789,2]
[329082878,1718087444836,-730.92,0.00023854,2]
[329082880,1718087444846,-176.16547105,0.00023889,2]
[329082882,1718087444856,-183.73,0.00023889,2]
[329082884,1718087444866,-211.0,0.0002399,2]
[329082886,1718087444877,-425.82956,0.00024,2]
[329082888,1718087444888,-180.0,0.0002423,2]
[329082889,1718087444899,-341.86084048,0.00024345,2]
[329082890,1718087444909,-155.55,0.00024384,2]
[329082891,1718087444920,-157.04,0.00024384,2]
[329082892,1718087444930,-319.35,0.00024384,2]
[329082893,1718087444942,-151.18,0.00024384,2]
[329082894,1718087444953,-211.0,0.0002449,2]
[329082895,1718087444964,-1269.7980078,0.00024797,3]
[329082896,1718087444977,-5768.71831209,0.00024798,2]
[329082897,1718087444987,-5768.71831209,0.00024798,2]
[329082898,1718087444998,-5768.71831209,0.00024798,2]
[329082899,1718087445009,-5768.71831209,0.00024798,2]
[329082900,1718087445020,-5768.71831209,0.00024798,2]
[329082901,1718087445031,-5768.71831209,0.00024798,2]
[329082902,1718087445043,-5768.71831209,0.00024798,2]
[329082903,1718087445054,-1146.06323181,0.00024799,2]
[329082904,1718087445064,-1146.06323175,0.00024799,2]
[329082905,1718087445075,-1146.06323175,0.00024799,2]
[329082906,1718087445086,-1146.06323175,0.00024799,2]
[329082907,1718087445097,-1146.06323175,0.00024799,2]
[329082908,1718087445107,-1146.06323175,0.00024799,2]
[329082909,1718087445121,-1146.06323175,0.00024799,2]
[329082910,1718087445132,-638.46280421,0.000249,2]
[329082911,1718087445143,-193.88261942,0.000249,2]
[329082912,1718087445154,-341.86084048,0.000249,2]